Cogmind - Beta 14 @@@ ROGUE MODE // 2024.11.23 @ 18:42:23 Player: skye Result: Self-destructed Performance ------------- Evolutions (4) 2000 Regions Visited (9) 1800 Robots Destroyed (58) 290 Value Destroyed (1522) 1522 Prototype IDs (26) 520 Alien Tech Used (0) 0 Bonus (205) 205 TOTAL SCORE: 6337 Bonus ------- Follower Combat Kills 39 Aligned with FarCom 300 Friendly Fire -134 Cogmind --------- Core Integrity 289/850 Matter 42/300 Energy 100/100 System Corruption 10% Temperature Cool (0) Movement Core (50) Location -6/Factory Parts ------- > --- POWER (2) -------- (None) > --- PROPULSION (5) --- (None) > --- UTILITY (6) ------ (None) > --- WEAPON (2) ------- (None) > --- INVENTORY (5) ---- Microactuators Advanced ECM Suite Reaction Control System Peak State ------------ > --- POWER ------------ Light Deuterium Engine > --- PROPULSION ------- Improved Flight Unit Improved Flight Unit Xenon Bombardment Thruster Xenon Bombardment Thruster > --- UTILITY ---------- Improved Cooling System Structural Scanner Advanced ECM Suite Hacking Suite System Shield System Restoration Module > --- WEAPON ----------- Arc Projector Longsword +1 > --- INVENTORY -------- Light Deuterium Engine Compact Wheel Microactuators Reaction Control System Proton Missile Launcher [Rating: 49] Favorites ----------- Power Light Nuclear Core Engine Light Ion Engine Power Core Light Nuclear Core Propulsion Light Treads Treads Light Treads Leg Light Armored Exoskeleton Wheel Compact Wheel Flight Unit Xenon Bombardment Thruster Utility Large Storage Unit Device Structural Scanner Storage Large Storage Unit Processor Targeting Computer Hackware Hacking Suite Protection Core Shielding Weapon Light Assault Rifle Energy Gun Beam Rifle Ballistic Gun Light Assault Rifle Ballistic Cannon Slug Cannon Launcher Proton Missile Launcher Slashing Weapon Longsword +1 Special Melee Weapon Datajack Build | -11 -10 -10 -10 -9 -8 -7 -6 -6 -6 ------- Run | Yrd Mat Min Exi Min Mat Fac Fac Was Fac Slots Evolved 8 | . . . . . 4 2 2 . . Power 1 | . . . . . . . 1 . . Propulsion 3 | . . . . . 1 1 1 . . Utility 4 | . . . . . 3 1 . . . Weapon . | . . . . . . . . . . Parts Attached 117 | 2 10 11 . 3 31 47 1 5 7 Power 20 | . 1 3 . . 5 8 1 1 1 Engine 12 | . 1 2 . . 4 5 . . . Core 8 | . . 1 . . 1 3 1 1 1 Reactor . | . . . . . . . . . . Propulsion 32 | 2 . 6 . . 5 17 . 2 . Treads 3 | 2 . . . . 1 . . . . Leg 7 | . . 3 . . 4 . . . . Wheel 4 | . . 3 . . . 1 . . . Hover . | . . . . . . . . . . Flight 18 | . . . . . . 16 . 2 . Utility 42 | . 7 . . 1 12 18 . 2 2 Device 24 | . 2 . . 1 4 14 . 2 1 Storage 4 | . 4 . . . . . . . . Processor 1 | . . . . . 1 . . . . Hackware 3 | . . . . . 1 2 . . . Protection 10 | . 1 . . . 6 2 . . 1 Artifact . | . . . . . . . . . . Weapon 23 | . 2 2 . 2 9 4 . . 4 Energy Gun 4 | . . . . . 3 1 . . . Energy Cannon . | . . . . . . . . . . Ballistic Gun 8 | . 2 2 . . 3 1 . . . Ballistic Cannon 2 | . . . . 1 . . . . 1 Launcher 7 | . . . . 1 1 2 . . 3 Special Weapon . | . . . . . . . . . . Impact Weapon . | . . . . . . . . . . Slashing Weapon 1 | . . . . . 1 . . . . Piercing Weapon . | . . . . . . . . . . Special Melee Weapon 1 | . . . . . 1 . . . . Unidentified Prototypes 3 | . . . . 1 . 2 . . . Parts Lost 37 | . 2 5 . 1 9 12 . 4 4 Power 8 | . 1 1 . . 2 3 . 1 . Propulsion 15 | . . 3 . . 3 6 . 2 1 Utility 8 | . 1 1 . . 3 2 . . 1 Weapon 6 | . . . . 1 1 1 . 1 2 Highest Loss Streak 9 | . 1 3 . 1 3 9 . 4 4 To Critical Strikes . | . . . . . . . . . . Average Slot Usage (%) 85 | . 97 81 85 85 82 93 86 59 34 Engine 6 | . 12 10 . . 7 4 . . . Core 3 | . . 2 14 14 1 1 13 5 . Treads 5 | . 28 2 . . . . . . . Leg 6 | . . 2 14 14 13 . . . . Wheel 3 | . . 11 14 14 . . . . . Flight 5 | . . . . . . 28 26 14 5 Device 9 | . . . . . 12 23 20 20 16 Storage 8 | . 14 14 14 14 9 . . . . Processor 1 | . . . . . 2 2 . . . Hackware 3 | . . . . . 1 13 13 10 5 Protection 9 | . 12 7 . . 17 2 6 6 5 Energy Gun 3 | . 7 . . . 7 . . . . Ballistic Gun 11 | . 20 28 28 19 4 2 . . . Slashing Weapon 2 | . . . . . 2 7 6 2 . Peak Build Rating 49 | 7 9 10 10 19 39 49 45 45 30 Average Rating 22 | 6 7 7 10 11 30 41 45 30 17 On Entrance 20 | 6 7 8 10 10 18 39 42 45 18 Naked Turns 5 | . . . . . . . . . 5 Heaviest Build 57 | 13 28 28 27 43 57 42 18 18 11 Greatest Support 45 | 40 40 40 16 16 45 45 22 22 6 Greatest Overweight (x) 15 | . . 2 1 2 15 4 . 1 3 Average Overweight (x) . | . . 1 1 1 1 . . . . Largest Inventory Capacity 25 | 8 25 15 15 15 15 15 5 5 5 Average Capacity 11 | 8 10 15 15 15 15 5 5 5 5 Most Carried 15 | 8 11 15 15 15 15 15 4 5 5 Average Carried 11 | 6 9 14 15 15 14 5 3 4 4 Final Capacity 15 | 8 15 15 15 15 15 5 5 5 5 Final Carried 15 | 8 11 15 15 15 15 4 4 5 3 Class Distribution -------------------- 61% | Mutant 9% | Hacker-Sprinter 9% | Scavenger-Mutant 7% | Skirmisher Dominant Class ---------------- Mutant | -10/Materials Mutant | -10/Mines Scavenger-Mutant | -10/Exiles Mutant | -9/Mines Mutant | -8/Materials Hacker-Sprinter | -7/Factory Hacker-Ninja | -6/Factory Hacker-Ninja | -6/Waste Infiltrator-Scout | -6/Factory Resources | -11 -10 -10 -10 -9 -8 -7 -6 -6 -6 ----------- Run | Yrd Mat Min Exi Min Mat Fac Fac Was Fac Matter Collected 1580 | 267 158 130 . . 775 250 . . . Remotely . | . . . . . . . . . . Salvage Created 1722 | 186 337 212 . . 827 160 . . . Parts 105 | 12 22 17 . . 43 11 . . . Haulers Intercepted 1 | . . . . . 1 . . . . Recyclers Shooed 2 | . . 1 . . . 1 . . . Parts Field Recycled . | . . . . . . . . . . Retrieved Matter . | . . . . . . . . . . Parts Self-Destructed . | . . . . . . . . . . Prevented . | . . . . . . . . . . Kills | -11 -10 -10 -10 -9 -8 -7 -6 -6 -6 ------- Run | Yrd Mat Min Exi Min Mat Fac Fac Was Fac Combat Hostiles Destroyed 44 | . 9 6 . . 25 4 . . . Melee 4 | . . . . . . 4 . . . Guns 27 | . 9 6 . . 12 . . . . AOE 11 | . . . . . 11 . . . . Classes Destroyed 12 | 2 4 . . . 5 1 . . . Worker 1 | . . . . . 1 . . . . Tunneler 6 | 5 . 1 . . . . . . . Hauler 1 | . . . . . 1 . . . . Recycler 2 | 1 . . . . 1 . . . . Operator 1 | . 1 . . . . . . . . Drone 1 | . . . . . 1 . . . . Watcher 3 | . 1 . . . 1 1 . . . Swarmer 21 | . 3 3 . . 12 3 . . . Grunt 12 | . 6 3 . . 3 . . . . Sentry 7 | . . . . . 7 . . . . Hunter 3 | . . . . . 3 . . . . Programmer 1 | . . . . . . 1 . . . Best Kill Streak 7 | 2 3 3 . . 7 3 . . . Combat Bots Only 7 | . 3 3 . . 7 3 . . . Max Kills in Single Turn 3 | 1 1 1 . . 3 1 . . . Gunslinging . | . . . . . . . . . . Exploded 2 | . . . . . 2 . . . . Melee 1 | . . . . . . 1 . . . Uniques/NPCs Destroyed . | . . . . . . . . . . Combat | -11 -10 -10 -10 -9 -8 -7 -6 -6 -6 -------- Run | Yrd Mat Min Exi Min Mat Fac Fac Was Fac Hostile Shots Fired 553 | . 63 53 . 11 179 117 . 4 126 Missed 185 | . 15 8 . 5 57 52 . . 48 Damage Taken 5065 | . 521 565 . 148 1774 1241 . 175 641 Core 1436 | . 64 80 . 18 208 505 . 175 386 Absorbed by Shields . | . . . . . . . . . . Redirected to Shielding 144 | . . . . . 75 68 . . 1 Regen/Repaired (Parts) 362 | . . . . . 183 80 . . 99 Core Remaining (%) 56 | 100 . . . 35 62 27 . . . Volleys Fired 270 | 55 48 35 . 7 123 1 . . 1 Largest 2 | 1 2 2 . 1 2 1 . . 1 Hottest 84 | 20 70 40 . 30 84 28 . . 53 Shots Fired 339 | 55 73 70 . 7 132 1 . . 1 Gun 317 | 55 73 70 . . 118 1 . . . Cannon 1 | . . . . . . . . . 1 Launcher 21 | . . . . 7 14 . . . . Special . | . . . . . . . . . . Kinetic 247 | 55 60 70 . . 60 1 . . 1 Thermal 71 | . 13 . . . 58 . . . . Explosive 21 | . . . . 7 14 . . . . Electromagnetic . | . . . . . . . . . . Robot Hit Streak 19 | 11 14 9 . . 19 2 . . 1 Robot Miss Streak 9 | 4 4 4 . . 9 . . . 3 Penetration Max . | . . . . . . . . . . Secondary Targets 1 | . . 1 . . . . . . . Max Gunslinging Chain 1 | . . 1 . . . . . . . Shots Hit Robots 246 | 37 47 46 . . 105 10 . . 1 Core Hits 130 | 14 24 16 . . 70 5 . . 1 Critical Kills 2 | 1 1 . . . . . . . . Critical Parts Destroyed 1 | . . 1 . . . . . . . Critical Strikes 8 | 1 2 1 . . 4 . . . . Burn 5 | . 1 . . . 4 . . . . Destroy 3 | 1 1 1 . . . . . . . Melee Attacks 21 | . . . . . 1 20 . . . Impact . | . . . . . . . . . . Slashing 20 | . . . . . . 20 . . . Piercing . | . . . . . . . . . . Sneak Attacks 2 | . . . . . 1 1 . . . Combat Hostiles . | . . . . . . . . . . Follow-up Attacks . | . . . . . . . . . . Damage Inflicted 3834 | 296 409 393 . . 2236 476 . . 24 Guns 2566 | 296 409 390 . . 1450 21 . . . Cannons . | . . . . . . . . . . Explosions 784 | . . . . . 784 . . . . Melee 455 | . . . . . . 455 . . . Ramming 29 | . . 3 . . 2 . . . 24 Kinetic 1762 | 296 308 390 . . 747 21 . . . Thermal 804 | . 101 . . . 703 . . . . Explosive 784 | . . . . . 784 . . . . Electromagnetic . | . . . . . . . . . . Impact . | . . . . . . . . . . Slashing 455 | . . . . . . 455 . . . Piercing . | . . . . . . . . . . Highest Corruption 10 | . . . . . 2 . . 10 10 Average Corruption 6 | . . . . . 2 . . 10 10 Corruption Purged . | . . . . . . . . . . Corruption Blocked . | . . . . . . . . . . Effects 10 | . . . . . . . . 1 9 Message Errors 2 | . . . . . . . . . 2 Matter Fused 2 | . . . . . . . . . 2 Heat Flow Errors 2 | . . . . . . . . . 2 Energy Discharges 1 | . . . . . . . . . 1 Data Loss (minor) 2 | . . . . . . . . . 2 Misdirections 1 | . . . . . . . . 1 . Overload Shots . | . . . . . . . . . . Overflow Damage 54 | . . . . . 7 47 . . . Projectiles . | . . . . . . . . . . Explosions 7 | . . . . . 7 . . . . Melee 47 | . . . . . . 47 . . . Knockbacks . | . . . . . . . . . . Impact . | . . . . . . . . . . Kinetic . | . . . . . . . . . . Secondary . | . . . . . . . . . . Self-Inflicted Damage 338 | . . 1 . 28 12 287 . . 10 Shots 7 | . . . . 2 1 4 . . . Rammed 10 | . 1 1 . . . . . . 8 Targets Rammed 11 | . 1 1 . . 1 . . . 8 Kicked 1 | . . . . . 1 . . . . Crushed . | . . . . . . . . . . Highest Temperature 248 | . 154 63 . 9 248 11 . . 243 Average Temperature 44 | . 44 20 . 7 50 11 . . 109 Received Heat Transfer 1110 | . 210 309 . . 336 18 . . 237 Siege Activations . | . . . . . . . . . . Robots Corrupted . | . . . . . . . . . . Combat Hostiles . | . . . . . . . . . . Parts Fried . | . . . . . . . . . . Impact Corruptions . | . . . . . . . . . . Robots Melted 2 | . . . . . 2 . . . . Combat Hostiles 2 | . . . . . 2 . . . . Parts Melted 9 | . 1 . . . 8 . . . . Heat Transferred 1998 | . 370 . . . 1628 . . . . Parts Sabotaged . | . . . . . . . . . . Parts Stolen . | . . . . . . . . . . Parts Stripped . | . . . . . . . . . . Power Chain Reactions . | . . . . . . . . . . Alert | -11 -10 -10 -10 -9 -8 -7 -6 -6 -6 ------- Run | Yrd Mat Min Exi Min Mat Fac Fac Was Fac Peak Influence 308 | 30 230 110 . 49 308 228 81 43 17 Initial 66 | . 19 22 . . 14 51 66 28 2 Average 73 | 16 88 38 . 8 99 96 70 21 3 Maximum Alert Level 1 | . 1 . . . 1 1 . . . Low Security (%) 90 | 100 82 100 . 100 86 87 100 100 100 Level 1 9 | . 17 . . . 13 12 . . . Level 2 . | . . . . . . . . . . Level 3 . | . . . . . . . . . . Level 4 . | . . . . . . . . . . Level 5 . | . . . . . . . . . . High Security . | . . . . . . . . . . Max Security . | . . . . . . . . . . Squads Dispatched 16 | . 2 . . . 6 7 . . 1 Investigation 2 | . 1 . . . 1 . . . . Extermination 1 | . . . . . . 1 . . . Reinforcement 10 | . 1 . . . 2 6 . . 1 Assault . | . . . . . . . . . . Garrison 3 | . . . . . 3 . . . . Intercept . | . . . . . . . . . . Searches Triggered . | . . . . . . . . . . Construction Impeded . | . . . . . . . . . . Haulers Reinforced 3 | . . . . . . 3 . . . Active Scanning Responses . | . . . . . . . . . . Cargo Convoy Interrupts . | . . . . . . . . . . Stealth | -11 -10 -10 -10 -9 -8 -7 -6 -6 -6 --------- Run | Yrd Mat Min Exi Min Mat Fac Fac Was Fac Distress Signals 7 | . . . . . 5 2 . . . Communications Jammed . | . . . . . . . . . . Distress Signals . | . . . . . . . . . . Times Spotted 104 | . 12 7 . 2 40 32 . 6 5 Peak Tracking Total 6 | . 3 3 . 1 4 6 . 6 4 Tactical Retreats 14 | . 1 1 . . 1 11 . . . Traps | -11 -10 -10 -10 -9 -8 -7 -6 -6 -6 ------- Run | Yrd Mat Min Exi Min Mat Fac Fac Was Fac Traps Triggered 4 | . . . . . 1 2 1 . . Indirectly . | . . . . . . . . . . Trap Hack Attempts . | . . . . . . . . . . Triggered . | . . . . . . . . . . Disarmed . | . . . . . . . . . . Reprogrammed . | . . . . . . . . . . Reused . | . . . . . . . . . . Traps Extracted . | . . . . . . . . . . Installed . | . . . . . . . . . . Triggered . | . . . . . . . . . . Machines | -11 -10 -10 -10 -9 -8 -7 -6 -6 -6 ---------- Run | Yrd Mat Min Exi Min Mat Fac Fac Was Fac Machines Disabled 8 | . . . . 2 1 5 . . . Max in Single Turn 4 | . . . . 2 1 4 . . . Garrison Access 1 | . . . . . . 1 . . . Machines Repaired . | . . . . . . . . . . Machines Dismantled . | . . . . . . . . . . Machines Sabotaged . | . . . . . . . . . . Overloaded Fab Kills . | . . . . . . . . . . Hacking | -11 -10 -10 -10 -9 -8 -7 -6 -6 -6 --------- Run | Yrd Mat Min Exi Min Mat Fac Fac Was Fac Machines Accessed 25 | . 5 . 1 1 6 10 . . 2 Terminals 14 | . 5 . . . 3 5 . . 1 Fabricators . | . . . . . . . . . . Repair Stations 4 | . . . . . 1 2 . . 1 Recycling Units 3 | . . . . . 1 2 . . . Scanalyzers . | . . . . . . . . . . Garrison Access 2 | . . . . . 1 1 . . . Total Hacks 70 | . 16 . 1 1 21 27 . . 4 Successful 38 | . 11 . 1 1 10 13 . . 2 Failed 32 | . 5 . . . 11 14 . . 2 Catastrophic 5 | . . . . . 2 2 . . 1 Database Lockouts . | . . . . . . . . . . Manual 33 | . 11 . 1 . 7 13 . . 1 Terminals 38 | . 16 . . . 7 14 . . 1 Fabricators . | . . . . . . . . . . Repair Stations 18 | . . . . . 7 8 . . 3 Recycling Units 8 | . . . . . 4 4 . . . Scanalyzers . | . . . . . . . . . . Garrison Access 4 | . . . . . 3 1 . . . Terminal Hacks 12 | . 7 . 1 1 2 1 . . . Record 1 | . 1 . . . . . . . . Robot Analysis 3 | . 3 . . . . . . . . Open Door 1 | . . . . 1 . . . . . Terminal Index 2 | . 1 . . . 1 . . . . Alert Level 2 | . 1 . . . . 1 . . . Unreport Threat 1 | . . . . . 1 . . . . Maintenance Status 1 | . 1 . . . . . . . . Derelict Proto ID Bank 1 | . . . 1 . . . . . . Fabricator Hacks . | . . . . . . . . . . Repair Station Hacks 11 | . . . . . 4 5 . . 2 Scan Component 6 | . . . . . 2 3 . . 1 Repair 5 | . . . . . 2 2 . . 1 Recycling Unit Hacks 4 | . . . . . 2 2 . . . Report Inventory 3 | . . . . . 1 2 . . . Retrieve Components 1 | . . . . . 1 . . . . Scanalyzer . | . . . . . . . . . . Garrison Access Hacks 1 | . . . . . . 1 . . . Seal Access 1 | . . . . . . 1 . . . Unauthorized Hacks 10 | . 4 . . . 2 4 . . . Terminals 10 | . 4 . . . 2 4 . . . Assimilate 1 | . . . . . . 1 . . . Botnet 9 | . 4 . . . 2 3 . . . Fabricators . | . . . . . . . . . . Repair Stations . | . . . . . . . . . . Recycling Units . | . . . . . . . . . . Scanalyzers . | . . . . . . . . . . Garrison Access . | . . . . . . . . . . Data Cores Recovered . | . . . . . . . . . . Used . | . . . . . . . . . . Hacking Detections 19 | . 4 . . . 5 8 . . 2 Full Trace Events 2 | . 1 . . . 1 . . . . Feedback Events . | . . . . . . . . . . Feedback Blocked . | . . . . . . . . . . Robot Schematics Acquired . | . . . . . . . . . . Robots Built . | . . . . . . . . . . Authchips . | . . . . . . . . . . Time . | . . . . . . . . . . Total Robot Build Rating . | . . . . . . . . . . Part Schematics Acquired . | . . . . . . . . . . Parts Built . | . . . . . . . . . . Authchips . | . . . . . . . . . . Time . | . . . . . . . . . . Total Part Build Rating . | . . . . . . . . . . Parts Repaired 5 | . . . . . 2 2 . . 1 Time 204 | . . . . . 70 48 . . 86 Parts Recycled . | . . . . . . . . . . Recycled Matter . | . . . . . . . . . . Retrieved Matter . | . . . . . . . . . . Retrieved Components 10 | . . . . . 10 . . . . Parts Scanalyzed . | . . . . . . . . . . Part Schematics Acquired . | . . . . . . . . . . Parts Damaged . | . . . . . . . . . . Bothacking | -11 -10 -10 -10 -9 -8 -7 -6 -6 -6 ------------ Run | Yrd Mat Min Exi Min Mat Fac Fac Was Fac Used RIF Installer . | . . . . . . . . . . Robots Hacked . | . . . . . . . . . . Non-combat . | . . . . . . . . . . Combat . | . . . . . . . . . . Robot Hacks Applied . | . . . . . . . . . . Relay Couplers Released . | . . . . . . . . . . Fabnet Peak Effective % . | . . . . . . . . . . Robots Rewired . | . . . . . . . . . . Allies Hacked . | . . . . . . . . . . Hacks Repelled . | . . . . . . . . . . Allies | -11 -10 -10 -10 -9 -8 -7 -6 -6 -6 -------- Run | Yrd Mat Min Exi Min Mat Fac Fac Was Fac Total Allies 3 | . . . . 3 . . . . . Largest Group 3 | . . . . 3 . . . . . Highest-Rated Group 40 | . . . . 40 . . . . . Highest-Rated Ally 16 | . . . . 16 . . . . . Total Orders . | . . . . . . . . . . Ally Attacks 7 | . . . . 7 . . . . . Total Damage 70 | . . . . 70 . . . . . Kills 1 | . . . . 1 . . . . . Allies Corrupted . | . . . . . . . . . . Allies Melted . | . . . . . . . . . . Intel | -11 -10 -10 -10 -9 -8 -7 -6 -6 -6 ------- Run | Yrd Mat Min Exi Min Mat Fac Fac Was Fac Robot Analysis Total 3 | . 3 . . . . . . . . Derelict Logs Recovered 2 | . . 1 . 1 . . . . . Drone Launches 11 | . . . . . 11 . . . . Drone Recoveries 9 | . . . . . 9 . . . . Exploration | -11 -10 -10 -10 -9 -8 -7 -6 -6 -6 ------------- Run | Yrd Mat Min Exi Min Mat Fac Fac Was Fac Turns Passed 6630 | 274 1055 683 254 612 2207 1233 29 44 239 Spaces Moved 5475 | 105 563 485 221 417 923 2299 94 105 263 Core 64 | . . . . . 43 2 . . 19 Treads 737 | 105 563 37 . . 32 . . . . Legs 734 | . . . . . 724 10 . . . Wheels 1216 | . . 448 221 417 124 6 . . . Hover . | . . . . . . . . . . Flight 2724 | . . . . . . 2281 94 105 244 Fastest Speed 27 | 160 160 110 115 115 115 27 29 29 40 Average Speed 94 | 160 160 114 115 122 194 33 29 33 45 Slowest Speed 800 | 160 160 160 115 130 800 275 29 120 200 Overloaded Moves . | . . . . . . . . . . Propulsion Burnouts . | . . . . . . . . . . Robots Hopped 17 | . . . . . . 10 2 5 . Cave-ins Triggered . | . . . . . . . . . . Exploration Rate (%) 46 | 7 72 90 61 50 55 44 2 76 5 Regions Visited 9 Branch Regions 3 Pre-discovered Areas 2 | . . 2 . . . . . . . Known Exits Taken 1 | . . . . 1 . . . . . Unknown Exits Taken 6 | 1 1 1 1 . 1 1 . . . Scrap Searched 2 | . . 2 . . . . . . . Spaces Dug 30 | . . . . 24 . 6 . . . Terrain Destroyed 188 | . . . . 64 68 56 . . . Melee 6 | . . . . . . 6 . . . Projectile . | . . . . . . . . . . AOE 182 | . . . . 64 68 50 . . . Terrain Rammed . | . . . . . . . . . . Walls Destroyed . | . . . . . . . . . . Machines Disabled . | . . . . . . . . . . Actions | -11 -10 -10 -10 -9 -8 -7 -6 -6 -6 --------- Run | Yrd Mat Min Exi Min Mat Fac Fac Was Fac Total 6634 | 167 661 554 222 513 1211 2724 94 105 383 Wait 614 | . 23 11 . 83 81 321 . . 95 Move 5436 | 104 562 484 220 416 922 2278 90 97 263 Hop 14 | . . . . . . 10 2 2 . Pick Up 61 | 4 8 7 1 2 25 12 1 1 . Fast Attach 47 | . 2 1 . 1 15 18 . 5 5 Attach 27 | . 2 3 . . 7 12 1 . 2 Detach 9 | . 1 . . . 1 6 . . 1 Swap 43 | 2 6 7 . 2 9 17 . . . Drop 81 | 2 8 5 1 2 26 29 . . 8 Fire 270 | 55 48 35 . 7 123 1 . . 1 Melee 21 | . . . . . 1 20 . . . Ram 9 | . . 1 . . . . . . 8 Kick 1 | . . . . . 1 . . . . Crush 1 | . 1 . . . . . . . . Escape Stasis . | . . . . . . . . . . Rewire . | . . . . . . . . . . Trap . | . . . . . . . . . . Miscellaneous . | . . . . . . . . . . Route ------- -11/Scrapyard -10/Materials (discovered 3 exits: [*Mat x2] / [*Min]) -10/Mines (discovered 3 exits: [*Mat x2] / *Exi) -10/Exiles -9/Mines -8/Materials -7/Factory -6/Factory -6/Waste -6/Factory History --------- Turn | Location | Event 10 | -11/Scrapyard | Discovered new exit (range 3) 275 | -11/Scrapyard | Entered Materials 314 | -10/Materials | Build established: Mutant 430 | -10/Materials | Discovered new exit (range 15) 556 | -10/Materials | Discovered new exit (range 15) 917 | -10/Materials | Discovered new exit (range 7) 1330 | -10/Materials | Entered Mines 1375 | -10/Mines | Found a hidden stash of uninstalled traps 1385 | -10/Mines | Discovered new exit (range 14) 1443 | -10/Mines | Lost 3 parts (1p2n) 1678 | -10/Mines | Core integrity fell below 50% 1728 | -10/Mines | Learned location of Zion (-7) 1790 | -10/Mines | Learned location of Storage (-9) 1899 | -10/Mines | Discovered new exit (range 8) 2008 | -10/Mines | Deemed a non-threat by the Exiles lab entrance 2008 | -10/Mines | Discovered new exit (range 5) 2013 | -10/Mines | Entered Exiles 2041 | -10/Exiles | Met 8R-AWN 2061 | -10/Exiles | Met EX-HEX 2097 | -10/Exiles | Met EX-BIN 2114 | -10/Exiles | Aligned with FarCom system 2115 | -10/Exiles | Given EX-Vault access code 2149 | -10/Exiles | Opened EX-Vault 2160 | -10/Exiles | Found Longsword +1 2181 | -10/Exiles | Build established: Scavenger-Mutant 2182 | -10/Exiles | Warned to stay clear of 0b10 Research branches 2214 | -10/Exiles | Met EX-DEC 2255 | -10/Exiles | Discovered new exit (range 10) 2267 | -10/Exiles | Left Exiles lab with Longsword +1 2267 | -10/Exiles | Entered Mines 2334 | -9/Mines | Received a Rocket Launcher from a helpful Derelict 2363 | -9/Mines | Assisted by bots powering up and referring to "LRC-V3" 2446 | -9/Mines | Assembled infested the area 2493 | -9/Mines | Identified exit to Materials 2507 | -9/Mines | A weapon hastily lodged in a ceiling crevice suddenly fell to the ground 2796 | -9/Mines | Build established: Mutant 2857 | -9/Mines | Found the Drone Emporium 2866 | -9/Mines | Found Prototype Device 2866 | -9/Mines | Identified Sensor Drone Bay 2879 | -9/Mines | Entered Materials 2879 | -8/Materials | Evolved 4 slots: Propulsion x1, Utility x3 2990 | -8/Materials | Garrison activated, responded to threat 3023 | -8/Materials | Destroyed 7 combat bots 3129 | -8/Materials | Lost 3 parts (1p1n1w) 4212 | -8/Materials | Repaired Deuterium Engine 4237 | -8/Materials | Discovered new exit (range 7) 4252 | -8/Materials | Build established: Skirmisher 4747 | -8/Materials | Build established: Mutant 4900 | -8/Materials | Repaired Hrd. Light Armor Plating 5086 | -8/Materials | Entered Factory 5086 | -7/Factory | Evolved 2 slots: Propulsion x1, Utility x1 5189 | -7/Factory | Repaired Broken Structural Scanner 5644 | -7/Factory | Build established: Hacker-Sprinter 5971 | -7/Factory | Core integrity fell below 50% 6019 | -7/Factory | Lost 9 parts (3p4n1u1w) 6166 | -7/Factory | Repaired Broken Proton Missile Launcher 6193 | -7/Factory | Assembled infested Garrison Access 6295 | -7/Factory | Discovered new exit (range 5) 6319 | -7/Factory | Entered another Factory area 6319 | -6/Factory | Evolved 2 slots: Power x1, Propulsion x1 6348 | -6/Factory | Sucked down chute 6348 | -6/Factory | Entered Waste 6351 | -6/Waste | Spotted C-40 Crusher 6354 | -6/Waste | Spotted C-40 Crusher 6357 | -6/Waste | Spotted C-40 Crusher 6363 | -6/Waste | EMP discharged 6363 | -6/Waste | System corruption reached 10% 6365 | -6/Waste | Spotted C-40 Crusher 6366 | -6/Waste | Spotted C-40 Crusher 6368 | -6/Waste | Crushed by Compactor (1 part destroyed, 2 dropped) 6369 | -6/Waste | Crushed by Compactor (1 part destroyed, 2 dropped) 6372 | -6/Waste | Crushed by Compactor (1 part destroyed, 2 dropped) 6374 | -6/Waste | Spotted C-40 Crusher 6375 | -6/Waste | Crushed by Compactor (1 part destroyed, 2 dropped) 6386 | -6/Waste | Discovered new exit (range 12) 6392 | -6/Waste | Entered Factory 6406 | -6/Factory | Lost 4 parts (1p2n1w) 6527 | -6/Factory | Repaired Broken Micro-nuke Launcher 6616 | -6/Factory | Core integrity fell below 50% 6631 | -6/Factory | Self-destructed Last Messages --------------- 06586_ O-24 Administrator locks terminal. 06588_ Dropped Transmission Jammer. 06589_ Dropped Adv. Terrain Scanner. 06589_ Dropped Hvy. Flak Cannon. 06590_ Dropped Propulsion Shielding. 06590_ Dropped Structural Scanner. 06591_ Dropped Lgt. Fission Core. 06591_ Xenon Bombardment Thruster destroyed. 06598_ YF4J Y :2JT3PREQVLNQC %0FFAVL2PQXP1 06612_ Micro-nuke Launcher destroyed. 06616_ Slammed into Y-54 Guardian. 06618_ ALERT: Security rotation in progress. 06618_ Slammed into Y-54 Guardian. 06619_ System corrupted: Component data lost. 06619_ Slammed into Y-54 Guardian. 06622_ Hacking Suite destroyed. 06622_ Slammed into Y-54 Guardian. 06627_ Critical hit (Burn: +37). 06628_ Proton Missile Launcher destroyed. 06628_ Critical hit (Burn: +37). Map ----- +----------------------------------------------------+ | ?????????????????????????????? | | ?????????????????????????????? | | ?????????????????????????????? | | ?????????????????????????????? | | ?????????????????????????????? | | ?????????????????????????????? | | ?????????????????????????????? | | ?????????????????????????????? | | ?????????????????????????????? | | ?????????????????????????????? | | ?????????????????????????????? | | ?????????????????????????????? | | ?????????????????????????????? | | ?????????????????????????????? | | ?????????????????????????????? | | ?????????????????????????????? | | ??????????????? # ???????????? | | ??????????????? # ##########?? | | ??????????????? # ############ | | ??????????????? # ### #### | | ??????????????? # #= # | | ??????????????? + # "" # | | ??????????????? # # "" # | | ??????????????? # # T" # | | ??????????????? # # "" # | | ??????????????? # # @"" # | | ??????????????? # # # | | ??????????????? # #ggY !# | | ???????????????## # g !]# | | ???????????????## + ]]!# | | ???????????????## # ]]!# | | ???????????????## # ]]*# | | ???????????????## # # | | ???????????????## # / # | | ???????????????## ######## | | ###########????## + # | | ###########????## # # | | # ##????## # ! "# | | # """ ######## # ""# | | # """ ######## # ""# | | # """ # # ""# | | # # # ""# | | # """ # + T"# | | # """ = + # ""# | | # """ # # ""# | | # # ###### # ! ""# | | ########## ###### # ""# | | ##??## # ] "# | | ###### # # | | ######+##+##### | +----------------------------------------------------+ Best States ------------- Heat Dissipation 61 Energy Generation 24 Energy Capacity 275 Matter Stores 300 Matter Capacity 300 Sight Range 16 Terrain Scan Range 16 Terrain Scan Density 10 ECM Strength 1 Armor Coverage 150 Core Shielding 20 Power Shielding 33 Propulsion Shielding 33 Melee Speed Boost 20 Evasion (%) 64 Targeting Accuracy 5 Recoil Reduction 5 Offensive Hacking 10 Defensive Hacking 10 Item Schematics ----------------- None Robot Schematics ------------------ None Fabricated ------------ Nothing Alien Tech Used ----------------- None Achievements -------------- None Challenges ------------ None Game ------ Seed WaveGrenadeShifter Manual? 0 Play Time 01:03:04 Cumulative 56.9 hours Start 2024.11.23 @ 17:41:47 End 2024.11.23 @ 18:42:23 Sessions 1 Manual Loads 0 Difficulty Rogue Special Mode None Game No. 75 Rogue 31 Adventurer 44 Explorer 0 Win Type - Total 0 Types 0/0/0/0/0/0/0/0/0 Lore% 18 Gallery% 44 Achievement% 32 Wizard Run 0 Options --------- Layout 1 ASCII 0 Keyboard 1 Movement Vi Keybinds 0 Fullscreen 1 Font 24/Terminus Map View 50x40 Zoom Use 0% Tactical HUD 1 Map Filters NONE Filters NONE Steam 1 RUN: 5a334642-e3de-4ef7-b797-4aa4955f3326